Cogmind - Beta 13 @@@ ROGUE MODE // 2024.04.11 @ 20:29:37 Player: BrainTooSmol Result: Self-destructed Performance ------------- Evolutions (5) 2500 Regions Visited (22) 4400 Robots Destroyed (78) 390 Value Destroyed (2225) 2225 Prototype IDs (21) 420 Alien Tech Used (0) 0 Bonus (1144) 1144 TOTAL SCORE: 11079 Bonus ------- Follower Combat Kills 144 Met Warlord at Base 500 MAIN.C Attacked Warlord 500 Cogmind --------- Core Integrity 383/1000 Matter 295/300 Energy 100/100 System Corruption 0% Temperature Cool (0) Movement Flying (34) Location -4/Proximity Caves Parts ------- > --- POWER (2) -------- Backup Power III Backup Power III > --- PROPULSION (5) --- Improved VTOL Module Biomechanical Wings > --- UTILITY (8) ------ 0b10 Decoder Chip [Scout] 0b10 Decoder Chip [Skirmisher] ECM Suite (fused) Hacking Suite System Shield > --- WEAPON (2) ------- Phasing Sabre > --- INVENTORY (5) ---- Makeshift Power Source Reaction Control System Backup Laser III Heavy Plasma Cannon Assault Cannon Peak State ------------ > --- POWER ------------ Fission Core > --- PROPULSION ------- Improved VTOL Module Improved VTOL Module Nuclear Pulse Thruster Biomechanical Wings Cooled Nuclear Pulse Thruster > --- UTILITY ---------- Small Storage Unit Experimental Sensor Array Improved Signal Interpreter Transmission Jammer ECM Suite Hacking Suite System Shield Makeshift System Shield > --- WEAPON ----------- Assault Cannon Power Sword > --- INVENTORY -------- 0b10 Decoder Chip [Skirmisher] Cloaking Device Improved Hacking Suite Heavy Plasma Cannon Heavy Rocket Launcher [Rating: 69] Favorites ----------- Power Fission Core Engine Ion Engine Power Core Fission Core Propulsion Improved VTOL Module Wheel Wheel Flight Unit Improved VTOL Module Utility Hacking Suite Device ECM Suite Storage Small Storage Unit Processor Improved Signal Interpreter Hackware Hacking Suite Protection Improved Light Armor Plating Weapon Light Assault Rifle Energy Gun EM Shotgun Energy Cannon EM Pulse Cannon Ballistic Gun Light Assault Rifle Ballistic Cannon Assault Cannon Launcher Heavy Rocket Launcher Slashing Weapon Power Sword Piercing Weapon CR-A16's Pointy Stick Build | -11 -10 -10 -10 -9 -8 -7 -7 -7 -7 -7 -6 -6 -6 -6 -6 -6 -5 -5 -5 -5 -5 -4 ------- Run | Yrd Mat Min Exi Min Mat Fac Was Fac Low Low Fac Was Fac Low Low Zio Pro Fac Upp Upp War Pro Slots Evolved 10 | . . . . . 4 2 . . . . 2 . . . . . . 2 . . . . Power 1 | . . . . . . . . . . . . . . . . . . 1 . . . . Propulsion 3 | . . . . . 1 . . . . . 1 . . . . . . 1 . . . . Utility 6 | . . . . . 3 2 . . . . 1 . . . . . . . . . . . Weapon . | . . . . . . . . . . . . . . . . . . . . . . . Parts Attached 152 | 6 11 2 . 1 19 34 3 5 1 1 7 . 24 2 3 2 4 12 7 . 6 2 Power 19 | 1 2 . . 1 1 5 . 1 . . 1 . 4 . . . . 2 1 . . . Engine 7 | 1 2 . . 1 . . . 1 . . . . 1 . . . . . 1 . . . Core 12 | . . . . . 1 5 . . . . 1 . 3 . . . . 2 . . . . Reactor . | . . . . . . . . . . . . . . . . . . . . . . . Propulsion 44 | 2 4 2 . . 8 8 2 . . . 3 . 7 . . . 1 6 1 . . . Treads . | . . . . . . . . . . . . . . . . . . . . . . . Leg . | . . . . . . . . . . . . . . . . . . . . . . . Wheel 14 | 2 4 2 . . 6 . . . . . . . . . . . . . . . . . Hover . | . . . . . . . . . . . . . . . . . . . . . . . Flight 30 | . . . . . 2 8 2 . . . 3 . 7 . . . 1 6 1 . . . Utility 48 | 1 3 . . . 5 11 1 2 . . 3 . 9 . 2 1 . 3 5 . 1 1 Device 24 | . . . . . 1 5 1 2 . . 2 . 5 . 1 . . 3 3 . 1 . Storage 4 | 1 1 . . . . 1 . . . . . . 1 . . . . . . . . . Processor 10 | . 2 . . . 1 3 . . . . . . 1 . 1 . . . 1 . . 1 Hackware 9 | . . . . . 2 2 . . . . 1 . 2 . . 1 . . 1 . . . Protection 1 | . . . . . 1 . . . . . . . . . . . . . . . . . Artifact . | . . . . . . . . . . . . . . . . . . . . . . . Weapon 41 | 2 2 . . . 5 10 . 2 1 1 . . 4 2 1 1 3 1 . . 5 1 Energy Gun 7 | 1 1 . . . 1 . . 1 . . . . . . . . . . . . 3 . Energy Cannon 8 | . . . . . 1 2 . . . . . . 3 1 . . . . . . 1 . Ballistic Gun 6 | 1 1 . . . 2 2 . . . . . . . . . . . . . . . . Ballistic Cannon 4 | . . . . . . 2 . . . . . . . 1 . . . 1 . . . . Launcher 12 | . . . . . 1 4 . 1 1 1 . . 1 . . . 2 . . . 1 . Special Weapon . | . . . . . . . . . . . . . . . . . . . . . . . Impact Weapon . | . . . . . . . . . . . . . . . . . . . . . . . Slashing Weapon 3 | . . . . . . . . . . . . . . . 1 . 1 . . . . 1 Piercing Weapon 1 | . . . . . . . . . . . . . . . . 1 . . . . . . Special Melee Weapon . | . . . . . . . . . . . . . . . . . . . . . . . Unidentified Prototypes 9 | . . . . . 2 1 1 . . . . . 1 1 . . . . . . 3 . Corrupted Parts 2 | . . . . . 1 1 . . . . . . . . . . . . . . . . System Corruption 6 | . . . . . 2 4 . . . . . . . . . . . . . . . . Parts Lost 34 | . 2 . . . 7 3 . 1 . . . . 7 . . . 1 6 2 4 . 1 Power 7 | . 1 . . . 1 1 . 1 . . . . 1 . . . . 1 1 . . . Propulsion 10 | . . . . . 3 1 . . . . . . 2 . . . 1 2 . 1 . . Utility 12 | . . . . . 1 1 . . . . . . 3 . . . . 2 1 3 . 1 Weapon 5 | . 1 . . . 2 . . . . . . . 1 . . . . 1 . . . . Highest Loss Streak 5 | . 1 . . . 5 2 . 1 . . . . 2 . . . 1 5 1 3 . 1 To Critical Strikes . | . . . . . . . . . . . . . . . . . . . . . . . Average Slot Usage (%) 86 | . 94 100 100 100 86 82 77 83 92 92 86 93 86 88 88 93 92 82 62 42 54 65 Engine 4 | . 14 14 14 14 5 . . . 7 7 4 . . . . . . . 3 . 6 11 Core 3 | . . . . . 2 6 7 6 . . 1 6 5 6 6 6 6 4 . . . . Wheel 7 | . 28 28 28 28 23 . . . . . . . . . . . . . . . . . Flight 17 | . . . . . . 22 23 23 23 23 25 26 26 26 26 26 25 24 16 13 11 11 Device 11 | . . . . . 6 6 8 15 15 15 13 13 16 20 19 20 20 16 16 8 10 10 Storage 7 | . 14 14 14 14 9 7 7 7 7 7 6 6 5 6 6 6 6 5 . . . . Processor 7 | . 8 14 14 14 8 11 7 7 7 7 6 6 4 6 6 6 6 4 5 5 5 9 Hackware 16 | . . . . . 12 22 23 23 23 23 20 26 22 20 20 20 20 17 18 13 11 11 Energy Gun 4 | . 14 14 14 14 5 . . . 7 7 6 6 2 . . . . . . . 6 5 Ballistic Gun 3 | . 14 14 14 14 9 1 . . . . . . . . . . . . . . . . Naked Turns . | . . . . . . . . . . . . . . . . . . . . . . . Heaviest Build 27 | 11 18 18 18 18 27 16 14 14 14 21 16 16 20 24 22 22 26 27 8 6 11 11 Greatest Support 30 | 20 20 20 20 20 30 16 15 15 15 15 21 21 23 23 23 23 23 28 17 11 11 11 Greatest Overweight (x) 2 | . . . . . 2 . . . . 1 . . . 1 . . 1 1 . . . . Average Overweight (x) . | . . . . . . . . . . . . . . . . . . . . . . . Largest Inventory Capacity 10 | 8 10 10 10 10 10 10 8 8 8 8 8 8 8 8 8 8 8 8 5 5 5 5 Average Capacity 8 | 6 9 10 10 10 10 8 8 8 8 8 8 8 7 8 8 8 8 7 5 5 5 5 Most Carried 10 | 2 10 10 10 10 10 10 8 8 7 7 8 7 8 8 8 8 8 8 5 5 5 5 Average Carried 7 | . 7 10 10 9 9 7 7 7 6 6 7 7 7 6 8 7 7 5 3 5 4 5 Final Capacity 10 | 8 10 10 10 10 10 8 8 8 8 8 8 8 8 8 8 8 8 5 5 5 5 5 Final Carried 10 | 2 10 10 10 10 10 8 8 7 7 7 7 7 8 8 8 8 7 5 5 5 5 5 Class Distribution -------------------- 63% | Hacker-Sprinter 15% | Scavenger-Mutant 10% | Hacker-Mutant 9% | Mutant Dominant Class ---------------- Mutant | -10/Materials Mutant | -10/Mines Scavenger-Mutant | -10/Exiles Scavenger-Mutant | -9/Mines Scavenger-Mutant | -8/Materials Hacker-Sprinter | -7/Factory Hacker-Sprinter | -7/Waste Hacker-Sprinter | -7/Factory Hacker-Sprinter | -7/Lower Caves Hacker-Sprinter | -7/Lower Caves Hacker-Sprinter | -6/Factory Hacker-Sprinter | -6/Waste Hacker-Sprinter | -6/Factory Hacker-Sprinter | -6/Lower Caves Hacker-Sprinter | -6/Lower Caves Hacker-Sprinter | -6/Zion Hacker-Sprinter | -5/Proximity Caves Hacker-Sprinter | -5/Factory Hacker-Sprinter | -5/Upper Caves Hacker-Mutant | -5/Upper Caves Hacker-Mutant | -5/Warlord Hacker-Mutant | -4/Proximity Caves Resources | -11 -10 -10 -10 -9 -8 -7 -7 -7 -7 -7 -6 -6 -6 -6 -6 -6 -5 -5 -5 -5 -5 -4 ----------- Run | Yrd Mat Min Exi Min Mat Fac Was Fac Low Low Fac Was Fac Low Low Zio Pro Fac Upp Upp War Pro Matter Collected 2283 | 212 224 30 . 10 317 333 . 84 10 73 58 . 239 18 53 24 100 108 275 45 60 10 Remotely . | . . . . . . . . . . . . . . . . . . . . . . . Salvage Created 2469 | . 698 199 . . 839 254 . 17 . . 106 . 166 . . . 34 83 . . . 73 Parts 169 | . 49 14 . . 38 23 . 4 . . 9 . 12 . . . 4 10 . . . 6 Haulers Intercepted 4 | . 2 . . . 1 1 . . . . . . . . . . . . . . . . Recyclers Shooed . | . . . . . . . . . . . . . . . . . . . . . . . Parts Field Recycled . | . . . . . . . . . . . . . . . . . . . . . . . Retrieved Matter . | . . . . . . . . . . . . . . . . . . . . . . . Parts Self-Destructed 16 | . . . . . . . . . 2 2 . . . 2 . . 2 . 4 1 . 3 Prevented 3 | . . . . . . . . . . . . . . 3 . . . . . . . . Kills | -11 -10 -10 -10 -9 -8 -7 -7 -7 -7 -7 -6 -6 -6 -6 -6 -6 -5 -5 -5 -5 -5 -4 ------- Run | Yrd Mat Min Exi Min Mat Fac Was Fac Low Low Fac Was Fac Low Low Zio Pro Fac Upp Upp War Pro Combat Hostiles Destroyed 48 | . 13 3 . . 15 5 . . . . . . 3 . . . 4 2 . . . 3 Melee 3 | . . . . . . . . . . . . . . . . . . . . . . 3 Guns 25 | . 13 2 . . 10 . . . . . . . . . . . . . . . . . Cannons 5 | . . . . . 1 1 . . . . . . 1 . . . . 2 . . . . AOE 15 | . . 1 . . 4 4 . . . . . . 2 . . . 4 . . . . . Classes Destroyed 10 | . 7 2 . . . 1 . . . . . . . . . . . . . . . . Worker 8 | . 2 1 . . 2 1 . 1 . . 1 . . . . . . . . . . . Tunneler 1 | . . 1 . . . . . . . . . . . . . . . . . . . . Hauler 4 | . 2 . . . 1 1 . . . . . . . . . . . . . . . . Mechanic 1 | . 1 . . . . . . . . . . . . . . . . . . . . . Operator 3 | . 2 . . . . . . . . . 1 . . . . . . . . . . . Watcher 13 | . 2 . . . 3 2 . . . . 2 . 3 . . . . 1 . . . . Swarmer 19 | . 3 . . . 3 4 . . . . . . 2 . . . 4 . . . . 3 Grunt 21 | . 10 2 . . 9 . . . . . . . . . . . . . . . . . Sentry 4 | . . 1 . . 3 . . . . . . . . . . . . . . . . . Programmer 4 | . . . . . . 1 . . . . . . 1 . . . . 2 . . . . Best Kill Streak 7 | . 4 2 . . 7 5 . 1 . . 2 . 2 . . . 4 1 . . . 3 Combat Bots Only 6 | . 3 2 . . 6 4 . . . . . . 2 . . . 4 1 . . . 3 Max Kills in Single Turn 3 | . 1 1 . . 2 3 . 1 . . 1 . 2 . . . 2 1 . . . 1 Gunslinging . | . . . . . . . . . . . . . . . . . . . . . . . Exploded 2 | . . 1 . . 2 2 . . . . . . 2 . . . 2 . . . . . Melee 1 | . . . . . . . . . . . . . . . . . . . . . . 1 Uniques/NPCs Destroyed . | . . . . . . . . . . . . . . . . . . . . . . . Combat | -11 -10 -10 -10 -9 -8 -7 -7 -7 -7 -7 -6 -6 -6 -6 -6 -6 -5 -5 -5 -5 -5 -4 -------- Run | Yrd Mat Min Exi Min Mat Fac Was Fac Low Low Fac Was Fac Low Low Zio Pro Fac Upp Upp War Pro Hostile Shots Fired 515 | . 54 9 . . 69 26 . 57 2 4 10 . 121 7 . . 30 62 7 37 2 18 Missed 255 | . 11 4 . . 18 10 . 39 2 2 8 . 81 4 . . 14 23 3 27 2 7 Damage Taken 4425 | . 496 94 . . 857 246 34 274 27 . 28 . 605 30 . . 261 1080 81 148 . 164 Core 1487 | . 148 . . . 280 62 14 108 . . 14 . 144 16 . . 84 512 . 27 . 78 Absorbed by Shields . | . . . . . . . . . . . . . . . . . . . . . . . Regen/Repaired (Parts) 502 | . . . . . . . . 26 . . 57 . 191 . . . . 218 . . 10 . Core Remaining (%) 66 | 100 . . . 40 49 . . . . 73 . . . . . . 69 . . . . . Volleys Fired 211 | . 63 10 . . 56 23 . 2 . 1 13 . 17 2 . . 8 16 . . . . Largest 2 | . 2 2 . . 2 2 . 1 . 2 1 . 1 1 . . 1 1 . . . . Hottest 103 | . 70 60 . . 86 103 . 45 . 84 45 . 45 44 . . 39 44 . . . . Shots Fired 336 | . 126 20 . . 103 27 . 2 . 3 13 . 16 2 . . 8 16 . . . . Gun 273 | . 126 20 . . 86 14 . 1 . 2 13 . 11 . . . . . . . . . Cannon 43 | . . . . . 15 6 . . . . . . 4 2 . . . 16 . . . . Launcher 20 | . . . . . 2 7 . 1 . 1 . . 1 . . . 8 . . . . . Special . | . . . . . . . . . . . . . . . . . . . . . . . Kinetic 170 | . 63 10 . . 64 15 . . . . . . . 2 . . . 16 . . . . Thermal 71 | . 63 . . . . 4 . . . . . . 4 . . . . . . . . . Explosive 20 | . . . . . 2 7 . 1 . 1 . . 1 . . . 8 . . . . . Electromagnetic 75 | . . 10 . . 37 1 . 1 . 2 13 . 11 . . . . . . . . . Robot Hit Streak 18 | . 18 7 . . 12 13 . 11 . . 12 . 5 1 . . 1 7 . . . . Robot Miss Streak 4 | . 2 1 . . 3 2 . . . . 4 . 4 1 . . 2 3 . . . . Penetration Max . | . . . . . . . . . . . . . . . . . . . . . . . Secondary Targets 1 | . 1 . . . . . . . . . . . . . . . . . . . . . Max Gunslinging Chain 1 | . 1 . . . . . . . . . . . . . . . . . . . . . Shots Hit Robots 240 | . 93 13 . . 73 18 . 1 . . 9 . 11 1 . . 1 12 . . . 8 Core Hits 131 | . 40 8 . . 36 14 . 1 . . 7 . 15 . . . 4 4 . . . 2 Critical Kills . | . . . . . . . . . . . . . . . . . . . . . . . Critical Parts Destroyed 1 | . . . . . . 1 . . . . . . . . . . . . . . . . Critical Strikes 8 | . 5 . . . . 1 . . . . . . . . . . . . . . . 2 Burn 5 | . 5 . . . . . . . . . . . . . . . . . . . . . Destroy 1 | . . . . . . 1 . . . . . . . . . . . . . . . . Sever 2 | . . . . . . . . . . . . . . . . . . . . . . 2 Melee Attacks 21 | . . . . . . . . . . . . . . . . 5 . 1 . . . 15 Impact . | . . . . . . . . . . . . . . . . . . . . . . . Slashing 21 | . . . . . . . . . . . . . . . . 5 . 1 . . . 15 Piercing . | . . . . . . . . . . . . . . . . . . . . . . . Sneak Attacks . | . . . . . . . . . . . . . . . . . . . . . . . Combat Hostiles . | . . . . . . . . . . . . . . . . . . . . . . . Follow-up Attacks . | . . . . . . . . . . . . . . . . . . . . . . . Damage Inflicted 5053 | . 971 232 . . 1408 659 . 10 . . 140 . 588 28 . . 344 351 . . . 322 Guns 2502 | . 971 137 . . 795 243 . 10 . . 140 . 206 . . . . . . . . . Cannons 910 | . . . . . 327 172 . . . . . . 74 28 . . . 309 . . . . Explosions 1277 | . . 95 . . 286 244 . . . . . . 308 . . . 344 . . . . . Melee 364 | . . . . . . . . . . . . . . . . . . 42 . . . 322 Ramming . | . . . . . . . . . . . . . . . . . . . . . . . Kinetic 1531 | . 346 42 . . 563 243 . . . . . . . 28 . . . 309 . . . . Thermal 1051 | . 625 95 . . 95 162 . . . . . . 74 . . . . . . . . . Explosive 980 | . . . . . 191 206 . . . . . . 239 . . . 344 . . . . . Electromagnetic 1127 | . . 95 . . 559 48 . 10 . . 140 . 275 . . . . . . . . . Impact . | . . . . . . . . . . . . . . . . . . . . . . . Slashing 364 | . . . . . . . . . . . . . . . . . . 42 . . . 322 Piercing . | . . . . . . . . . . . . . . . . . . . . . . . Highest Corruption 13 | . 1 1 1 1 2 4 10 10 10 10 1 1 13 13 13 13 . 3 3 3 3 . Average Corruption 6 | . 1 1 1 1 2 4 8 10 10 10 1 1 8 13 13 13 . 2 3 3 3 . Corruption Purged . | . . . . . . . . . . . . . . . . . . . . . . . Corruption Blocked . | . . . . . . . . . . . . . . . . . . . . . . . Effects 179 | . 1 2 . 5 1 13 3 46 4 8 1 . 71 5 3 2 . 6 4 4 . . Message Errors 38 | . . 1 . 1 . 3 . 8 . 1 . . 18 1 . 1 . 1 1 2 . . Matter Fused 46 | . 1 . . . 1 3 . 13 1 4 1 . 16 1 1 . . 2 2 . . . Heat Flow Errors 19 | . . . . 1 . 2 1 8 . . . . 6 . . . . 1 . . . . Energy Discharges 25 | . . . . 1 . 2 . 9 1 2 . . 5 2 1 . . . 1 1 . . Parts Rejected 3 | . . . . . . 1 . 1 . . . . . . . . . 1 . . . . Parts Fused 4 | . . . . . . 1 . 1 . . . . 2 . . . . . . . . . Data Loss (minor) 23 | . . 1 . 1 . 1 . 4 . . . . 14 . . . . 1 . 1 . . Data Loss (major) 8 | . . . . 1 . . 1 . 1 . . . 3 . 1 1 . . . . . . Misfires 1 | . . . . . . . . . . 1 . . . . . . . . . . . . Alerts 5 | . . . . . . . . 1 . . . . 3 1 . . . . . . . . Misdirections 6 | . . . . . . . 1 1 1 . . . 3 . . . . . . . . . Weapon Failures 1 | . . . . . . . . . . . . . 1 . . . . . . . . . Overload Shots . | . . . . . . . . . . . . . . . . . . . . . . . Overflow Damage 132 | . . . . . 42 . . . . . . . 8 . . . 31 18 . . . 33 Projectiles 31 | . . . . . 13 . . . . . . . . . . . . 18 . . . . Explosions 68 | . . . . . 29 . . . . . . . 8 . . . 31 . . . . . Melee 33 | . . . . . . . . . . . . . . . . . . . . . . 33 Knockbacks 4 | . . . . . . . . . . . . . . 1 . . . 3 . . . . Impact . | . . . . . . . . . . . . . . . . . . . . . . . Kinetic 4 | . . . . . . . . . . . . . . 1 . . . 3 . . . . Secondary . | . . . . . . . . . . . . . . . . . . . . . . . Self-Inflicted Damage 83 | . . 25 . . . 17 . . . . . . . . . . 41 . . . . . Shots 3 | . . 1 . . . 1 . . . . . . . . . . 1 . . . . . Rammed . | . . . . . . . . . . . . . . . . . . . . . . . Targets Rammed . | . . . . . . . . . . . . . . . . . . . . . . . Kicked . | . . . . . . . . . . . . . . . . . . . . . . . Crushed . | . . . . . . . . . . . . . . . . . . . . . . . Highest Temperature 270 | . 166 47 . 229 168 235 114 264 . 13 6 . 270 . . . . 92 . . . . Average Temperature 72 | . 58 24 . 119 36 81 59 111 . 6 4 . 117 . . . . 53 . . . . Received Heat Transfer 906 | . 237 36 . . 468 6 . 45 . . . . 87 . . . . 18 9 . . . Siege Activations . | . . . . . . . . . . . . . . . . . . . . . . . Robots Corrupted . | . . . . . . . . . . . . . . . . . . . . . . . Combat Hostiles . | . . . . . . . . . . . . . . . . . . . . . . . Parts Fried 4 | . . . . . 1 . . . . . 1 . 2 . . . . . . . . . Impact Corruptions . | . . . . . . . . . . . . . . . . . . . . . . . Robots Melted . | . . . . . . . . . . . . . . . . . . . . . . . Combat Hostiles . | . . . . . . . . . . . . . . . . . . . . . . . Parts Melted 6 | . 2 . . . 3 1 . . . . . . . . . . . . . . . . Heat Transferred 2718 | . 2220 100 . . 100 198 . . . . . . 100 . . . . . . . . . Parts Sabotaged . | . . . . . . . . . . . . . . . . . . . . . . . Parts Stolen 1 | . . . . . . . . . . . . . . 1 . . . . . . . . Parts Stripped . | . . . . . . . . . . . . . . . . . . . . . . . Power Chain Reactions 5 | . . 2 . . 2 1 . . . . . . . . . . . . . . . . Alert | -11 -10 -10 -10 -9 -8 -7 -7 -7 -7 -7 -6 -6 -6 -6 -6 -6 -5 -5 -5 -5 -5 -4 ------- Run | Yrd Mat Min Exi Min Mat Fac Was Fac Low Low Fac Was Fac Low Low Zio Pro Fac Upp Upp War Pro Peak Influence 379 | . 351 231 . . 320 379 177 200 . . 207 18 336 . . . . 153 . . . . Initial 132 | . . 106 . . . 38 132 123 . . 123 18 12 . . . . . . . . . Average 113 | . 169 184 . . 139 155 162 80 . . 83 18 124 . . . . 31 . . . . Maximum Alert Level 1 | . 1 1 . . 1 1 . 1 . . 1 . 1 . . . . . . . . . Low Security (%) 78 | 100 43 63 . 100 79 77 100 81 . . 90 100 81 . . . . 100 . . . . Level 1 21 | . 56 36 . . 20 22 . 18 . . 9 . 18 . . . . . . . . . Level 2 . | . . . . . . . . . . . . . . . . . . . . . . . Level 3 . | . . . . . . . . . . . . . . . . . . . . . . . Level 4 . | . . . . . . . . . . . . . . . . . . . . . . . Level 5 . | . . . . . . . . . . . . . . . . . . . . . . . High Security . | . . . . . . . . . . . . . . . . . . . . . . . Max Security . | . . . . . . . . . . . . . . . . . . . . . . . Squads Dispatched 32 | . 4 . . . 1 4 . 6 . . 6 . 9 . . . . 2 . . . . Investigation 14 | . 2 . . . . 2 . 3 . . 1 . 6 . . . . . . . . . Extermination 10 | . . . . . . 1 . 3 . . 3 . 2 . . . . 1 . . . . Reinforcement 8 | . 2 . . . 1 1 . . . . 2 . 1 . . . . 1 . . . . Assault . | . . . . . . . . . . . . . . . . . . . . . . . Garrison . | . . . . . . . . . . . . . . . . . . . . . . . Intercept . | . . . . . . . . . . . . . . . . . . . . . . . Searches Triggered . | . . . . . . . . . . . . . . . . . . . . . . . Construction Impeded . | . . . . . . . . . . . . . . . . . . . . . . . Haulers Reinforced . | . . . . . . . . . . . . . . . . . . . . . . . Active Scanning Responses . | . . . . . . . . . . . . . . . . . . . . . . . Cargo Convoy Interrupts 1 | . . . . . . . . 1 . . . . . . . . . . . . . . Stealth | -11 -10 -10 -10 -9 -8 -7 -7 -7 -7 -7 -6 -6 -6 -6 -6 -6 -5 -5 -5 -5 -5 -4 --------- Run | Yrd Mat Min Exi Min Mat Fac Was Fac Low Low Fac Was Fac Low Low Zio Pro Fac Upp Upp War Pro Distress Signals 13 | . 3 . . . 4 . . 1 . . . . 3 . . . . 1 . . 1 . Communications Jammed 22 | . . . . . . . . . . . . . 3 . . . 19 . . . . . Distress Signals 3 | . . . . . . . . . . . . . 3 . . . . . . . . . Times Spotted 267 | . 27 3 . . 25 26 5 17 13 6 12 3 61 3 . . 11 20 3 15 11 6 Peak Tracking Total 10 | . 4 1 . . 4 5 5 8 9 4 4 3 6 2 . . 4 10 2 5 6 5 Tactical Retreats 58 | . 2 . . . . 6 . 8 2 3 3 . 18 . . . 6 4 1 4 . 1 Traps | -11 -10 -10 -10 -9 -8 -7 -7 -7 -7 -7 -6 -6 -6 -6 -6 -6 -5 -5 -5 -5 -5 -4 ------- Run | Yrd Mat Min Exi Min Mat Fac Was Fac Low Low Fac Was Fac Low Low Zio Pro Fac Upp Upp War Pro Traps Triggered 16 | . 2 . . . . 3 . 2 . . 1 . 8 . . . . . . . . . Indirectly . | . . . . . . . . . . . . . . . . . . . . . . . Trap Hack Attempts . | . . . . . . . . . . . . . . . . . . . . . . . Triggered . | . . . . . . . . . . . . . . . . . . . . . . . Disarmed . | . . . . . . . . . . . . . . . . . . . . . . . Reprogrammed 4 | . . . . . . . . . . . . . 4 . . . . . . . . . Reused 2 | . . . . . . . . . . . . . 2 . . . . . . . . . Traps Extracted . | . . . . . . . . . . . . . . . . . . . . . . . Installed . | . . . . . . . . . . . . . . . . . . . . . . . Triggered 21 | . . . . . . . . 2 3 . . . 2 1 . . . . 3 . 10 . Machines | -11 -10 -10 -10 -9 -8 -7 -7 -7 -7 -7 -6 -6 -6 -6 -6 -6 -5 -5 -5 -5 -5 -4 ---------- Run | Yrd Mat Min Exi Min Mat Fac Was Fac Low Low Fac Was Fac Low Low Zio Pro Fac Upp Upp War Pro Machines Disabled 11 | . . . . . 2 4 . 1 . . . . 3 . . . . 1 . . . . Max in Single Turn 1 | . . . . . 1 1 . 1 . . . . 1 . . . . 1 . . . . Garrison Access 6 | . . . . . 1 1 . 2 . . . . 1 . . . . 1 . . . . Machines Repaired . | . . . . . . . . . . . . . . . . . . . . . . . Machines Dismantled . | . . . . . . . . . . . . . . . . . . . . . . . Machines Sabotaged . | . . . . . . . . . . . . . . . . . . . . . . . Overloaded Fab Kills . | . . . . . . . . . . . . . . . . . . . . . . . Hacking | -11 -10 -10 -10 -9 -8 -7 -7 -7 -7 -7 -6 -6 -6 -6 -6 -6 -5 -5 -5 -5 -5 -4 --------- Run | Yrd Mat Min Exi Min Mat Fac Was Fac Low Low Fac Was Fac Low Low Zio Pro Fac Upp Upp War Pro Machines Accessed 104 | . 6 . 1 . 9 15 . 15 . . 10 . 25 . 1 . . 8 3 . 11 . Terminals 46 | . 5 . . . 6 9 . 7 . . 5 . 10 . . . . 4 . . . . Fabricators 10 | . . . . . . 2 . 2 . . 2 . 3 . . . . 1 . . . . Repair Stations 7 | . . . . . . 1 . 1 . . 1 . 3 . . . . 1 . . . . Recycling Units 12 | . 1 . . . 1 1 . 3 . . 1 . 5 . . . . . . . . . Scanalyzers 6 | . . . . . 1 1 . . . . 1 . 2 . . . . 1 . . . . Garrison Access 7 | . . . . . 1 1 . 2 . . . . 2 . . . . 1 . . . . Total Hacks 311 | . 19 . 1 . 28 35 . 44 . . 32 . 85 . 1 . . 41 5 . 20 . Successful 204 | . 10 . 1 . 20 21 . 27 . . 23 . 53 . 1 . . 23 5 . 20 . Failed 105 | . 9 . . . 7 14 . 17 . . 9 . 31 . . . . 18 . . . . Catastrophic 14 | . 2 . . . . 3 . 1 . . 4 . 1 . . . . 3 . . . . Database Lockouts 2 | . . . . . 1 . . . . . . . 1 . . . . . . . . . Manual 109 | . 12 . . . 16 17 . 14 . . 13 . 23 . . . . 14 . . . . Terminals 152 | . 15 . . . 20 23 . 24 . . 17 . 35 . . . . 18 . . . . Fabricators 25 | . . . . . . 4 . 4 . . 3 . 9 . . . . 5 . . . . Repair Stations 35 | . . . . . . 2 . 3 . . 4 . 15 . . . . 11 . . . . Recycling Units 32 | . 4 . . . 3 1 . 11 . . 3 . 10 . . . . . . . . . Scanalyzers 30 | . . . . . 3 4 . . . . 5 . 12 . . . . 6 . . . . Garrison Access 10 | . . . . . 2 1 . 2 . . . . 4 . . . . 1 . . . . Terminal Hacks 79 | . 5 . 1 . 11 8 . 8 . . 6 . 12 . 1 . . 2 5 . 20 . Record 25 | . 1 . 1 . 1 . . . . . 1 . 2 . 1 . . 2 3 . 13 . Part Schematic 10 | . . . . . 2 4 . . . . 2 . 2 . . . . . . . . . Robot Analysis 2 | . 2 . . . . . . . . . . . . . . . . . . . . . Prototype ID Bank 5 | . . . . . . . . . . . . . . . . . . . . . 5 . Open Door 4 | . . . . . . . . . . . . . . . . . . . 2 . 2 . Branch Access Points 2 | . . . . . . 1 . . . . . . 1 . . . . . . . . . Terminal Index 3 | . . . . . . 1 . 1 . . 1 . . . . . . . . . . . Repair Station Index 1 | . . . . . . . . 1 . . . . . . . . . . . . . . Recycling Unit Index 2 | . 1 . . . . . . 1 . . . . . . . . . . . . . . Scanalyzer Index 1 | . . . . . . . . 1 . . . . . . . . . . . . . . Garrison Index 2 | . . . . . . 1 . 1 . . . . . . . . . . . . . . Alert Level 3 | . 1 . . . . . . . . . . . 2 . . . . . . . . . Unreport Threat 1 | . . . . . 1 . . . . . . . . . . . . . . . . . Locate Traps 1 | . . . . . . . . . . . . . 1 . . . . . . . . . Reprogram Traps 1 | . . . . . . . . . . . . . 1 . . . . . . . . . Maintenance Status 1 | . . . . . . 1 . . . . . . . . . . . . . . . . Transport Status 2 | . . . . . 2 . . . . . . . . . . . . . . . . . Recall Investigation 1 | . . . . . . . . . . . . . 1 . . . . . . . . . Recall Extermination 3 | . . . . . . . . 1 . . 1 . 1 . . . . . . . . . Hauler Manifests 2 | . . . . . 2 . . . . . . . . . . . . . . . . . Registered Components 3 | . . . . . 1 . . 1 . . . . 1 . . . . . . . . . Zone Layout 4 | . . . . . 2 . . 1 . . 1 . . . . . . . . . . . Fabricator Hacks 15 | . . . . . . 3 . 2 . . 3 . 6 . . . . 1 . . . . Network Status 4 | . . . . . . 1 . 1 . . 1 . . . . . . 1 . . . . Load Schematic 6 | . . . . . . 1 . 1 . . 1 . 3 . . . . . . . . . Build 5 | . . . . . . 1 . . . . 1 . 3 . . . . . . . . . Repair Station Hacks 28 | . . . . . . 2 . 2 . . 4 . 10 . . . . 10 . . . . Scan Component 14 | . . . . . . 1 . 1 . . 2 . 5 . . . . 5 . . . . Repair 14 | . . . . . . 1 . 1 . . 2 . 5 . . . . 5 . . . . Recycling Unit Hacks 21 | . 1 . . . 1 1 . 10 . . 1 . 7 . . . . . . . . . Process 5 | . . . . . . . . 3 . . . . 2 . . . . . . . . . Report Inventory 13 | . 1 . . . 1 1 . 4 . . 1 . 5 . . . . . . . . . Retrieve Matter 3 | . . . . . . . . 3 . . . . . . . . . . . . . . Scanalyzer 26 | . . . . . 2 4 . . . . 5 . 10 . . . . 5 . . . . Insert Component 12 | . . . . . 1 2 . . . . 2 . 5 . . . . 2 . . . . Analyze 14 | . . . . . 1 2 . . . . 3 . 5 . . . . 3 . . . . Garrison Access Hacks 6 | . . . . . 1 1 . 2 . . . . 1 . . . . 1 . . . . Seal Access 6 | . . . . . 1 1 . 2 . . . . 1 . . . . 1 . . . . Unauthorized Hacks 29 | . 4 . . . 5 2 . 3 . . 4 . 7 . . . . 4 . . . . Terminals 23 | . 3 . . . 3 2 . 3 . . 2 . 7 . . . . 3 . . . . Assimilate 10 | . . . . . 1 . . 2 . . . . 5 . . . . 2 . . . . Botnet 13 | . 3 . . . 2 2 . 1 . . 2 . 2 . . . . 1 . . . . Fabricators 1 | . . . . . . . . . . . . . . . . . . 1 . . . . Report 1 | . . . . . . . . . . . . . . . . . . 1 . . . . Repair Stations . | . . . . . . . . . . . . . . . . . . . . . . . Recycling Units 5 | . 1 . . . 2 . . . . . 2 . . . . . . . . . . . Monitor 3 | . 1 . . . 1 . . . . . 1 . . . . . . . . . . . Reject 2 | . . . . . 1 . . . . . 1 . . . . . . . . . . . Scanalyzers . | . . . . . . . . . . . . . . . . . . . . . . . Garrison Access . | . . . . . . . . . . . . . . . . . . . . . . . Data Cores Recovered . | . . . . . . . . . . . . . . . . . . . . . . . Used . | . . . . . . . . . . . . . . . . . . . . . . . Hacking Detections 62 | . 6 . . . 4 9 . 12 . . 7 . 18 . . . . 6 . . . . Full Trace Events 12 | . 1 . . . . 1 . 3 . . 1 . 6 . . . . . . . . . Feedback Events . | . . . . . . . . . . . . . . . . . . . . . . . Feedback Blocked . | . . . . . . . . . . . . . . . . . . . . . . . Robot Schematics Acquired 4 | . . . . . . . . . . . . . . . . 4 . . . . . . Robots Built . | . . . . . . . . . . . . . . . . . . . . . . . Authchips . | . . . . . . . . . . . . . . . . . . . . . . . Time . | . . . . . . . . . . . . . . . . . . . . . . . Total Robot Build Rating . | . . . . . . . . . . . . . . . . . . . . . . . Part Schematics Acquired 34 | . . . . . 2 6 . . . . 4 . 6 . . 14 . 2 . . . . Parts Built 8 | . . . . . . 2 . . . . 2 . 4 . . . . . . . . . Authchips . | . . . . . . . . . . . . . . . . . . . . . . . Time 289 | . . . . . . 24 . . . . 106 . 159 . . . . . . . . . Total Part Build Rating 34 | . . . . . . 6 . . . . 12 . 16 . . . . . . . . . Parts Repaired 14 | . . . . . . 1 . 1 . . 2 . 5 . . . . 5 . . . . Time 804 | . . . . . . 26 . 112 . . 120 . 256 . . . . 290 . . . . Parts Recycled . | . . . . . . . . . . . . . . . . . . . . . . . Recycled Matter 1600 | . . . . . . . . 1082 . . . . 518 . . . . . . . . . Retrieved Matter 1082 | . . . . . . . . 1082 . . . . . . . . . . . . . . Retrieved Components . | . . . . . . . . . . . . . . . . . . . . . . . Parts Scanalyzed 11 | . . . . . 1 2 . . . . 2 . 4 . . . . 2 . . . . Part Schematics Acquired 10 | . . . . . . 2 . . . . 2 . 4 . . . . 2 . . . . Parts Damaged 3 | . . . . . . . . . . . 1 . 2 . . . . . . . . . Bothacking | -11 -10 -10 -10 -9 -8 -7 -7 -7 -7 -7 -6 -6 -6 -6 -6 -6 -5 -5 -5 -5 -5 -4 ------------ Run | Yrd Mat Min Exi Min Mat Fac Was Fac Low Low Fac Was Fac Low Low Zio Pro Fac Upp Upp War Pro Used RIF Installer . | . . . . . . . . . . . . . . . . . . . . . . . Robots Hacked . | . . . . . . . . . . . . . . . . . . . . . . . Non-combat . | . . . . . . . . . . . . . . . . . . . . . . . Combat . | . . . . . . . . . . . . . . . . . . . . . . . Robot Hacks Applied . | . . . . . . . . . . . . . . . . . . . . . . . Relay Couplers Released . | . . . . . . . . . . . . . . . . . . . . . . . Fabnet Peak Effective % . | . . . . . . . . . . . . . . . . . . . . . . . Robots Rewired . | . . . . . . . . . . . . . . . . . . . . . . . Allies Hacked . | . . . . . . . . . . . . . . . . . . . . . . . Hacks Repelled . | . . . . . . . . . . . . . . . . . . . . . . . Allies | -11 -10 -10 -10 -9 -8 -7 -7 -7 -7 -7 -6 -6 -6 -6 -6 -6 -5 -5 -5 -5 -5 -4 -------- Run | Yrd Mat Min Exi Min Mat Fac Was Fac Low Low Fac Was Fac Low Low Zio Pro Fac Upp Upp War Pro Total Allies 12 | . . 2 . 3 1 . . 2 . . . . 2 . . . . 2 . . . . Largest Group 3 | . . 2 . 3 3 . . 1 1 . . . 2 . . . . 2 . . . . Highest-Rated Group 52 | . . 45 . 40 42 . . 26 10 . . . 36 . . . . 52 . . . . Highest-Rated Ally 31 | . . 31 . 16 26 . . 26 10 . . . 26 . . . . 26 . . . . Total Orders 22 | . . . . . 5 . . 6 . . . . 6 . . . . 5 . . . . STAY 12 | . . . . . 3 . . 3 . . . . 3 . . . . 3 . . . . ROAM 3 | . . . . . . . . 1 . . . . 1 . . . . 1 . . . . FOLLOW 7 | . . . . . 2 . . 2 . . . . 2 . . . . 1 . . . . Ally Attacks 56 | . . 1 . . 55 . . . . . . . . . . . . . . . . . Total Damage 618 | . . 22 . . 596 . . . . . . . . . . . . . . . . . Kills 4 | . . 1 . . 3 . . . . . . . . . . . . . . . . . Allies Corrupted . | . . . . . . . . . . . . . . . . . . . . . . . Allies Melted . | . . . . . . . . . . . . . . . . . . . . . . . Intel | -11 -10 -10 -10 -9 -8 -7 -7 -7 -7 -7 -6 -6 -6 -6 -6 -6 -5 -5 -5 -5 -5 -4 ------- Run | Yrd Mat Min Exi Min Mat Fac Was Fac Low Low Fac Was Fac Low Low Zio Pro Fac Upp Upp War Pro Robot Analysis Total 2 | . 2 . . . . . . . . . . . . . . . . . . . . . Derelict Logs Recovered 8 | . . 2 . 1 . . . . 1 . . . . 1 1 . 1 . 1 . . . Drone Launches . | . . . . . . . . . . . . . . . . . . . . . . . Drone Recoveries . | . . . . . . . . . . . . . . . . . . . . . . . Exploration | -11 -10 -10 -10 -9 -8 -7 -7 -7 -7 -7 -6 -6 -6 -6 -6 -6 -5 -5 -5 -5 -5 -4 ------------- Run | Yrd Mat Min Exi Min Mat Fac Was Fac Low Low Fac Was Fac Low Low Zio Pro Fac Upp Upp War Pro Turns Passed 13398 | 49 1464 400 155 564 997 1044 51 1350 156 187 848 117 2453 168 93 353 1212 704 236 165 526 106 Spaces Moved 21851 | 49 924 452 194 656 736 2014 133 2463 492 549 1473 205 5417 400 300 1061 1161 784 539 421 1251 177 Core 2 | 2 . . . . . . . . . . . . . . . . . . . . . . Treads . | . . . . . . . . . . . . . . . . . . . . . . . Legs . | . . . . . . . . . . . . . . . . . . . . . . . Wheels 3009 | 47 924 452 194 656 736 . . . . . . . . . . . . . . . . . Hover . | . . . . . . . . . . . . . . . . . . . . . . . Flight 18840 | . . . . . . 2014 133 2463 492 549 1473 205 5417 400 300 1061 1161 784 539 421 1251 177 Fastest Speed 25 | 50 80 80 80 80 80 29 29 29 29 29 26 27 27 29 29 29 28 25 32 34 34 34 Average Speed 36 | 78 80 80 80 80 83 29 29 29 29 29 26 27 27 38 29 29 29 28 32 36 34 34 Slowest Speed 110 | 80 80 80 80 80 110 32 29 29 29 99 29 27 34 102 29 29 103 99 40 40 34 34 Overloaded Moves . | . . . . . . . . . . . . . . . . . . . . . . . Propulsion Burnouts . | . . . . . . . . . . . . . . . . . . . . . . . Robots Hopped 124 | . . . . . . 16 . 14 . . 4 . 83 1 . . 2 3 . . 1 . Cave-ins Triggered . | . . . . . . . . . . . . . . . . . . . . . . . Exploration Rate (%) 63 | 4 97 98 57 99 50 43 82 42 65 66 24 99 77 68 60 84 83 14 65 61 96 24 Regions Visited 22 Branch Regions 13 Pre-discovered Areas 2 | . . . 1 . . . . . . . . . . . . 1 . . . . . . Known Exits Taken 11 | . . . 1 . 1 . . 1 1 1 . . 1 1 1 1 1 1 . . . . Unknown Exits Taken 7 | 1 1 1 . 1 . . . . . . . . . . . . . . 1 1 1 . Scrap Searched 25 | . . 1 . 4 . . . . . 3 . . . 2 4 4 1 . 2 2 . 2 Spaces Dug 89 | . . . . . . 46 . 17 . 21 . . . . . . . . . . . 5 Terrain Destroyed 260 | . . 9 . . 9 67 . 17 . 21 . . 6 . . . 125 1 . . . 5 Melee 5 | . . . . . . . . . . . . . . . . . . . . . . 5 Projectile 2 | . . . . . . 1 . . . . . . . . . . . 1 . . . . AOE 253 | . . 9 . . 9 66 . 17 . 21 . . 6 . . . 125 . . . . . Terrain Rammed . | . . . . . . . . . . . . . . . . . . . . . . . Walls Destroyed . | . . . . . . . . . . . . . . . . . . . . . . . Machines Disabled . | . . . . . . . . . . . . . . . . . . . . . . . Actions | -11 -10 -10 -10 -9 -8 -7 -7 -7 -7 -7 -6 -6 -6 -6 -6 -6 -5 -5 -5 -5 -5 -4 --------- Run | Yrd Mat Min Exi Min Mat Fac Was Fac Low Low Fac Was Fac Low Low Zio Pro Fac Upp Upp War Pro Total 26812 | 56 1536 473 193 696 1018 2434 147 3086 505 573 1909 265 6276 409 304 1098 2021 1237 596 432 1349 199 Wait 4417 | . 522 8 . 30 185 335 5 608 12 22 409 61 764 5 . 27 847 425 48 12 88 4 Move 21598 | 48 923 451 193 655 735 1984 132 2434 491 548 1465 204 5263 397 299 1060 1156 777 538 420 1248 177 Hop 109 | . . . . . . 14 . 14 . . 4 . 70 1 . . 2 3 . . 1 . Pick Up 73 | 2 9 . . 5 10 11 1 12 . . 5 . 13 1 . 1 1 . 1 . 1 . Fast Attach 73 | 6 4 . . . 12 11 1 2 . . 2 . 9 . 3 2 1 10 4 . 5 1 Attach 56 | . 1 . . . 4 20 2 3 1 1 4 . 9 2 . . 3 2 3 . 1 . Detach 34 | . . . . . . 14 3 1 1 1 2 . 5 1 . . 1 3 2 . . . Swap 23 | . 6 2 . 1 3 3 . . . . 1 . 6 . . . . . . . . 1 Drop 89 | . 8 2 . 5 13 19 3 10 . . 4 . 12 . 2 3 2 . . . 5 1 Fire 211 | . 63 10 . . 56 23 . 2 . 1 13 . 17 2 . . 8 16 . . . . Melee 21 | . . . . . . . . . . . . . . . . 5 . 1 . . . 15 Ram . | . . . . . . . . . . . . . . . . . . . . . . . Kick . | . . . . . . . . . . . . . . . . . . . . . . . Crush . | . . . . . . . . . . . . . . . . . . . . . . . Escape Stasis 108 | . . . . . . . . . . . . . 108 . . . . . . . . . Rewire . | . . . . . . . . . . . . . . . . . . . . . . . Trap . | . . . . . . . . . . . . . . . . . . . . . . . Miscellaneous . | . . . . . . . . . . . . . . . . . . . . . . . Route ------- -11/Scrapyard -10/Materials (discovered 5 exits: [*Mat x3] / [*Min x2]) -10/Mines (discovered 3 exits: [*Mat x2] / *Exi) -10/Exiles (discovered 2 exits: *Min x2) -9/Mines (discovered 2 exits: *Mat x2) -8/Materials (discovered 3 exits: *Fac x3) -7/Factory (discovered 3 exits: *Fac / Low x2) -7/Waste -7/Factory -7/Lower Caves -7/Lower Caves -6/Factory (discovered 4 exits: *Fac x2 / *Low x2) -6/Waste -6/Factory (discovered 5 exits: *Fac x3 / *Low x2) -6/Lower Caves -6/Lower Caves -6/Zion -5/Proximity Caves -5/Factory -5/Upper Caves -5/Upper Caves (discovered 2 exits: [*Fac] / *War) -5/Warlord -4/Proximity Caves History --------- Turn | Location | Event 35 | -11/Scrapyard | Discovered new exit (range 16) 50 | -11/Scrapyard | Entered Materials 141 | -10/Materials | Discovered new exit (range 7) 317 | -10/Materials | Build established: Mutant 907 | -10/Materials | Discovered new exit (range 9) 925 | -10/Materials | Build established: Scavenger-Mutant 1039 | -10/Materials | Discovered new exit (range 12) 1110 | -10/Materials | Discovered new exit (range 14) 1143 | -10/Materials | Core integrity fell below 50% 1231 | -10/Materials | Discovered new exit (range 12) 1498 | -10/Materials | Build established: Mutant 1514 | -10/Materials | Entered Mines 1601 | -10/Mines | Discovered new exit (range 9) 1737 | -10/Mines | Deemed a non-threat by the Exiles lab entrance 1737 | -10/Mines | Discovered new exit (range 5) 1748 | -10/Mines | Discovered new exit (range 8) 1825 | -10/Mines | Learned Materials emergency access door positions 1914 | -10/Mines | Entered Exiles 1915 | -10/Exiles | Identified exit to Mines 1933 | -10/Exiles | Met 8R-AWN 1948 | -10/Exiles | Met EX-HEX 1979 | -10/Exiles | Met EX-DEC 1983 | -10/Exiles | Learned location of Zion (-6) 2069 | -10/Exiles | Entered Mines 2121 | -9/Mines | Learned 2 Materials zone layouts 2150 | -9/Mines | Discovered new exit (range 14) 2152 | -9/Mines | Build established: Scavenger-Mutant 2187 | -9/Mines | Received a Rocket Launcher from a helpful Derelict 2216 | -9/Mines | Discovered new exit (range 3) 2249 | -9/Mines | Found a damaged Exp. Sensor Array with a note attached 2251 | -9/Mines | Found Prototype Device 2281 | -9/Mines | Assisted by bots powering up and referring to "LRC-V3" 2633 | -9/Mines | Entered Materials 2633 | -8/Materials | Accompanied by 3 allies 2633 | -8/Materials | Evolved 4 slots: Propulsion x1, Utility x3 2634 | -8/Materials | Identified exit to Factory 2900 | -8/Materials | Discovered exit to Factory (range 16) 3209 | -8/Materials | Central database locked down 3357 | -8/Materials | Lost 5 parts (1p2n1u1w) 3383 | -8/Materials | Discovered exit to Factory (range 16) 3495 | -8/Materials | Core integrity fell below 50% 3630 | -8/Materials | Entered Factory 3630 | -7/Factory | Evolved 2 slots: Utility x2 3724 | -7/Factory | Identified exit to Lower Caves 3943 | -7/Factory | Build established: Hacker-Sprinter 4182 | -7/Factory | Repaired Broken Imp. Sensor Array 4459 | -7/Factory | Discovered new exit (range 15) 4549 | -7/Factory | Fabricated Imp. Signal Interpreter (x2) 4674 | -7/Factory | Sucked down chute 4674 | -7/Factory | Entered Waste 4683 | -7/Waste | Spotted C-40 Crusher 4686 | -7/Waste | Spotted C-40 Crusher 4689 | -7/Waste | EMP discharged 4689 | -7/Waste | System corruption reached 10% 4691 | -7/Waste | Spotted C-40 Crusher 4691 | -7/Waste | Spotted C-40 Crusher 4696 | -7/Waste | Spotted C-40 Crusher 4705 | -7/Waste | Spotted C-40 Crusher 4715 | -7/Waste | Discovered new exit (range 11) 4725 | -7/Waste | Identified exit to Factory 4725 | -7/Waste | Entered Factory 5548 | -7/Factory | Discovered exit to Lower Caves (range 7) 5781 | -7/Factory | Repaired Broken Cld. Nuclear Pulse Thruster 5876 | -7/Factory | Cargo convoy interrupted 6075 | -7/Factory | Entered Lower Caves 6075 | -7/Lower Caves | Accompanied by 1 ally 6223 | -7/Lower Caves | Discovered new exit (range 10) 6225 | -7/Lower Caves | Identified exit to Lower Caves 6231 | -7/Lower Caves | Entered another Lower Caves area 6242 | -7/Lower Caves | Encountered a Warlord checkpoint 6272 | -7/Lower Caves | Discovered new exit (range 8) 6274 | -7/Lower Caves | Identified exit to Factory 6324 | -7/Lower Caves | Spotted B-75 Beast 6342 | -7/Lower Caves | Attacked by a delusional Derelict stockpiling parts 6418 | -7/Lower Caves | Entered Factory 6418 | -6/Factory | Evolved 2 slots: Propulsion x1, Utility x1 6430 | -6/Factory | Discovered new exit (range 10) 6433 | -6/Factory | Identified exit to Factory 6501 | -6/Factory | Repaired Imp. VTOL Module? 6572 | -6/Factory | Repaired Imp. VTOL Module 6733 | -6/Factory | Discovered new exit (range 4) 6734 | -6/Factory | Identified exit to Lower Caves 6739 | -6/Factory | Discovered exit to Lower Caves (range 16) 6837 | -6/Factory | Fabricated Mic. Fission Core? 7261 | -6/Factory | Discovered exit to Factory (range 8) 7266 | -6/Factory | Sucked down chute 7266 | -6/Factory | Entered Waste 7271 | -6/Waste | Spotted C-40 Crusher 7316 | -6/Waste | Spotted C-40 Crusher 7325 | -6/Waste | Spotted C-40 Crusher 7354 | -6/Waste | Spotted C-40 Crusher 7359 | -6/Waste | Spotted C-40 Crusher 7379 | -6/Waste | Discovered new exit (range 13) 7382 | -6/Waste | Identified exit to Factory 7383 | -6/Waste | Entered Factory 7479 | -6/Factory | Discovered exit to Lower Caves (range 12) 7530 | -6/Factory | Repaired Broken Cld. Nuclear Pulse Thruster 7653 | -6/Factory | Identified Exp. Sensor Array 7659 | -6/Factory | Spotted B-75 Beast 8042 | -6/Factory | Discovered exit to Factory (range 15) 8431 | -6/Factory | Discovered exit to Factory (range 13) 8489 | -6/Factory | Central database locked down 8528 | -6/Factory | System corruption reached 10% 8638 | -6/Factory | Fabricated Imp. Signal Interpreter? 8646 | -6/Factory | Fabricated Imp. Hacking Suite? 8650 | -6/Factory | Repaired ECM Suite 8667 | -6/Factory | Repaired Sml. Storage Unit 8736 | -6/Factory | Repaired Broken Exp. Sensor Array? 9473 | -6/Factory | Fabricated Biomechanical Wings? 9522 | -6/Factory | Discovered exit to Factory (range 16) 9590 | -6/Factory | Repaired Fission Core 9836 | -6/Factory | Entered Lower Caves 9913 | -6/Lower Caves | Encountered a Warlord checkpoint 9958 | -6/Lower Caves | Learned Factory security intel 10002 | -6/Lower Caves | Discovered new exit (range 6) 10004 | -6/Lower Caves | Identified exit to Lower Caves 10004 | -6/Lower Caves | Entered another Lower Caves area 10086 | -6/Lower Caves | Learned Factory terminal intel 10093 | -6/Lower Caves | Discovered new exit (range 15) 10096 | -6/Lower Caves | Identified exit to Zion 10097 | -6/Lower Caves | Entered Zion 10106 | -6/Zion | Found Unknown Piercing Weapon 10106 | -6/Zion | Identified CR-A16's Pointy Stick 10115 | -6/Zion | Discovered new exit (range 12) 10131 | -6/Zion | System corruption cleaned by Quarantine Array 10199 | -6/Zion | Given the Hacking Drone Bay 10449 | -6/Zion | Identified exit to Proximity Caves 10450 | -6/Zion | Entered Proximity Caves 11125 | -5/Proximity Caves | Learned Factory trap positions 11297 | -5/Proximity Caves | Attracted the attention of an 0b10 checkpoint 11585 | -5/Proximity Caves | Spotted B-75 Beast 11627 | -5/Proximity Caves | Discovered exit to Factory (range 12) 11662 | -5/Proximity Caves | Entered Factory 11662 | -5/Factory | Evolved 2 slots: Power x1, Propulsion x1 11663 | -5/Factory | Identified exit to Upper Caves 11664 | -5/Factory | Loaded intel: 114 trap records 11666 | -5/Factory | Loaded intel: 26 terminal locations 11786 | -5/Factory | Repaired Nuclear Pulse Thruster 11868 | -5/Factory | Repaired Biomechanical Wings 11919 | -5/Factory | Repaired Fission Core 12152 | -5/Factory | Repaired Imp. VTOL Module 12203 | -5/Factory | Repaired Fission Core 12366 | -5/Factory | Core integrity fell below 50% 12366 | -5/Factory | Entered Upper Caves 12367 | -5/Upper Caves | Encountered a Warlord checkpoint 12393 | -5/Upper Caves | Lost 5 parts (1p1n2u1w) 12401 | -5/Upper Caves | Learned Factory machine intel 12415 | -5/Upper Caves | Learned Research trap positions 12415 | -5/Upper Caves | Learned Research terminal intel 12595 | -5/Upper Caves | Discovered new exit (range 13) 12602 | -5/Upper Caves | Entered another Upper Caves area 12617 | -5/Upper Caves | Discovered new exit (range 9) 12700 | -5/Upper Caves | Lost 3 parts (1n2u) 12762 | -5/Upper Caves | Discovered new exit (range 12) 12767 | -5/Upper Caves | Entered Warlord 12788 | -5/Warlord | Discovered new exit (range 14) 12805 | -5/Warlord | System corruption cleaned by Quarantine Array 12875 | -5/Warlord | Build established: Hacker-Mutant 13003 | -5/Warlord | Warlord's base attacked by MAIN.C 13010 | -5/Warlord | Learned 4 Armory zone layouts 13010 | -5/Warlord | Learned 4 Research zone layouts 13010 | -5/Warlord | Learned 4 Command zone layouts 13110 | -5/Warlord | Met Warlord 13138 | -5/Warlord | Found Prototype Launcher 13138 | -5/Warlord | Identified Vortex Catalyst Activator 13140 | -5/Warlord | Found Prototype Energy Gun 13140 | -5/Warlord | Identified Vortex Rifle 13143 | -5/Warlord | Found Prototype Energy Cannon 13143 | -5/Warlord | Identified Vortex Driver 13272 | -5/Warlord | Opened side exit 13293 | -5/Warlord | Entered Proximity Caves 13399 | -4/Proximity Caves | Self-destructed Last Messages --------------- 13310_ Found Ripper. 13310_ Found 30 Matter. 13313_ Searching scrap... 13313_ Found 0b10 Decoder Chip [Scout]. 13313_ Found Hvy. Plasma Cannon. 13313_ Found Mak. Salvage Targeting Computer. 13313_ Found 21 Matter. 13314_ Acquired 0b10 Decoder Chip [Scout]. 13315_ Acquired 10 matter. 13349_ Dropped Backup Laser III. 13376_ S-27 Virus destroyed. 13379_ S-27 Virus Autogun severed. 13381_ VTOL Module fries itself beyond repair. 13383_ Exp. Sensor Array destroyed. 13386_ S-27 Virus destroyed. 13387_ VTOL Module fries itself beyond repair. 13389_ S-27 Virus Autogun severed. 13396_ Destroyed Lgt. Nuclear Core. 13396_ S-27 Virus destroyed. 13399_ Autogun fries itself beyond repair. Map ----- +----------------------------------------------------+ | ?????????????????????????????????????????????????? | | ?????????????????????????????????????????????????? | | ?????????????????????????????????????????????????? | | ?????????????????????????????????????????????????? | | ?????????????????????? #?????????????????????????? | | ####?????????#?????? #????????????????????????? | | #??????? ###??? #???????????????????????? | | ######## ## ???????????????????????? | | ### ???????????????????????? | | #?# ???????????????????????? | | #?# #### ???????????????????????? | | ##?# #????????????? #???????????????????????? | | #### #?????????????? #???????????????????????? | | #??????????????? #???????????????????????? | | #???????????????# #???????????????????????? | | #######???????????????# #####???????????????????? | | ??????????????????????# # ##??????????????????? | | #?????????????????????# # ##?????????????????? | | ####???????????######## "#?????????????????? | | #???????????# ###?????????????????? | | ##???????#### ###### ## #?????????????????? | | ####????# #????## #?????????????????? | | #??### #####????## # ##?????????????????? | | ##?# #???###??# # ##??????????????????? | | ### ##??? #?## = ###???????????????????? | | ## #???? #?#%[@##?????????????????????? | | ## # ##### ####[##??????????????????????? | | ?#### ###%"#??????????????????????? | | ????## ## #??????????????????????? | | ?????## #### "##??????????????????????? | | ??????#### ##??? #???????????????????????? | | ?????????#####????? #???????????????????????? | | ?????????????????# ?????????????????????? | | #??????????????? ####????????????????????? | | ?????????????? #???????????????????????? | | ????????????? #???????????????????????? | | ?????????????# #???????????????????????? | | ?????????????# ???????????????????????? | | ?????????????? ??????????????????????? | | #????????????? ## ####?????????????????????? | | ????????????????#?## ## #????????????????????????? | | ????????????????????????#????????????????????????? | | ?????????????????????????????????????????????????? | | ?????????????????????????????????????????????????? | | ?????????????????????????????????????????????????? | | ?????????????????????????????????????????????????? | | ?????????????????????????????????????????????????? | | ?????????????????????????????????????????????????? | | ?????????????????????????????????????????????????? | | ?????????????????????????????????????????????????? | +----------------------------------------------------+ Best States ------------- Heat Dissipation 40 Energy Generation 18 Energy Capacity 310 Matter Stores 300 Matter Capacity 300 Sight Range 16 Robot Scan Range 20 Terrain Scan Density 10 ECM Strength 1 Jamming Range 12 Armor Coverage 150 Evasion (%) 74 Targeting Accuracy 8 Melee Accuracy 6 Offensive Hacking 30 Defensive Hacking 21 Item Schematics ----------------- Cesium-ion Thruster | -8/Materials | Hacked Hacking Suite | -8/Materials | Hacked Transmission Jammer | -7/Factory | Hacked Mic. Fission Core | -7/Factory | Hacked ECM Suite | -7/Factory | Scanalyzed Rocket Launcher | -7/Factory | Scanalyzed Imp. Signal Interpreter | -7/Factory | Hacked Enh. Gauss Cannon | -7/Factory | Hacked Gravity Neutralizer | -6/Factory | Hacked Linear Gravjet | -6/Factory | Hacked Cld. Nuclear Pulse Thruster | -6/Factory | Scanalyzed Cloaking Device | -6/Factory | Scanalyzed Exp. Sensor Array | -6/Factory | Scanalyzed Centrium Wheel | -6/Factory | Hacked Imp. Hacking Suite | -6/Factory | Hacked Biomechanical Wings | -6/Factory | Scanalyzed Xenon Bombardment Thruster | -6/Factory | Scanalyzed Magnetic Acceleration Cannon | -6/Factory | Scanalyzed Tesla Rifle | -6/Zion | Archive Angular Momentum Engine | -6/Zion | Archive Plasma Rifle | -6/Zion | Archive Imp. Arc Projector | -6/Zion | Archive Adv. Target Analyzer | -6/Zion | Archive Thermic Laser | -6/Zion | Archive Mak. Trap Scanner | -6/Zion | Archive Lgt. Fission Core | -6/Zion | Archive Adv. Plasma Cannon | -6/Zion | Archive Neutrino Core | -6/Zion | Archive Stasis Canceller | -6/Zion | Archive Imp. Recalibrator | -6/Zion | Archive Mak. Cloaking Device | -6/Zion | Archive Impulse Thruster | -6/Zion | Archive 0b10 Decoder Chip [Skirmisher] | -5/Factory | Scanalyzed Hvy. Rocket Launcher | -5/Factory | Scanalyzed Robot Schematics ------------------ R-06 Scavenger | -6/Zion | Archive K-01 Serf | -6/Zion | Archive L-41 Fighter | -6/Zion | Archive H-88 Terminator | -6/Zion | Archive Fabricated ------------ Imp. Signal Interpreter | x2 | -7/Factory Mic. Fission Core | x2 | -6/Factory Imp. Signal Interpreter | x2 | -6/Factory Imp. Hacking Suite | x1 | -6/Factory Biomechanical Wings | x1 | -6/Factory Alien Tech Used ----------------- None Achievements -------------- Below Cya! Challenges ------------ None Game ------ Seed AngularEncryptedFlakker Manual? 0 Play Time 04:18:47 Cumulative 39.7 hours Start 2024.04.11 @ 03:04:48 End 2024.04.11 @ 20:29:37 Sessions 1 Manual Loads 0 Difficulty Rogue Special Mode None Game No. 23 Rogue 23 Adventurer 0 Explorer 0 Win Type - Total 1 Types 1/0/0/0/0/0/0/0/0 Lore% 35 Gallery% 30 Achievement% 32 Wizard Run 0 Options --------- Layout 0 ASCII 0 Keyboard 0 Movement Mouse Keybinds 0 Fullscreen 1 Font 18/SmallcapsGlow Map View 76x50 Zoom Use 0% Tactical HUD 1 Map Filters NONE Filters NONE Steam 1 RUN: 4f323063-8185-4997-9564-605bff996392